{"text_format":"3","workbook":"xlsx","n_sheets":1,"sheets":["Бюджет свадьбы"],"not_rendered":{"images":1},"read":"whole","date_system":"1900"}

{"sheet":"Бюджет свадьбы","index":0,"n_rows":109,"n_cols":5,"rows_kept":109,"merged":[[2,1,3,1],[5,1,6,1],[14,1,15,1],[24,1,25,1],[33,1,34,1],[43,1,44,1],[50,1,51,1],[60,1,61,1],[73,1,74,1],[87,1,88,1],[95,1,96,1]]}
[{"$nulls":4}," "]
[]
[null,"Общие расходы ","Предполагаемые","Фактические"]
[null,null,{"$f":"C7+C16+C26+C35+C45+C52+C62+C75+C89+C97","v":{"v":350,"d":"350 ₽"}},{"$f":"D7+D16+D26+D35+D45+D52+D62+D75+D89+D97","v":{"v":320,"d":"320 ₽"}}]
[]
[null,"Одежда и украшения","Предполагаемые","Фактические"]
[null,null,{"$f":"SUM(Таблица_Одежда_и_Украшения[[#All],[Предполагаемые]])","v":{"v":350,"d":"350 ₽"}},{"$f":"SUM(Таблица_Одежда_и_Украшения[[#All],[Фактические]])","v":{"v":320,"d":"320 ₽"}}]
[null,"Столбец1","Предполагаемые","Фактические"]
[null,"Обручальные кольца",{"v":350,"d":"350.00 ₽"},{"v":320,"d":"320.00 ₽"}]
[null,"Свадебный наряд"]
[null,"Аксессуары"]
[null,"Обувь"]
[null,"Другое — введите подробные сведения"]
[]
[null,"Оформление","Предполагаемые","Фактические"]
[null,null,{"$f":"SUM(Таблица_Оформление[[#All],[Предполагаемые]])","v":{"v":0,"d":"0 ₽"}},{"$f":"SUM(Таблица_Оформление[[#All],[Фактические]])","v":{"v":0,"d":"0 ₽"}}]
[null,"Столбец1","Предполагаемые","Фактические"]
[null,"Украшения для церковных скамей и других сидячих мест"]
[null,"Украшения в центре стола (кроме цветов)"]
[null,"Свечи"]
[null,"Освещение"]
[null,"Воздушные шары"]
[null,"Другое — введите подробные сведения"]
[]
[null,"Подарки","Предполагаемые","Фактические"]
[null,null,{"$f":"SUM(Таблица_Подарки[[#All],[Предполагаемые]])","v":{"v":0,"d":"0 ₽"}},{"$f":"SUM(Таблица_Подарки[[#All],[Фактические]])","v":{"v":0,"d":"0 ₽"}}]
[null,"Столбец1","Предполагаемые","Фактические"]
[null,"Свидетели"]
[null,"Молодожены"]
[null,"Родители"]
[null,"Ораторы и другие участники"]
[null,"Другое — введите подробные сведения"]
[]
[null,"Цветы","Предполагаемые","Фактические"]
[null,null,{"$f":"SUM(Таблица_Цветы[[#All],[Предполагаемые]])","v":{"v":0,"d":"0 ₽"}},{"$f":"SUM(Таблица_Цветы[[#All],[Фактические]])","v":{"v":0,"d":"0 ₽"}}]
[null,"Столбец1","Предполагаемые","Фактические"]
[null,"Букеты"]
[null,"Бутоньерки"]
[null,"Цветочные браслеты"]
[null,"Церемония"]
[null,"Торжество"]
[null,"Другое — введите подробные сведения"]
[]
[null,"Музыка","Предполагаемые","Фактические"]
[null,null,{"$f":"SUM(Таблица_Музыка[[#All],[Предполагаемые]])","v":{"v":0,"d":"0 ₽"}},{"$f":"SUM(Таблица_Музыка[[#All],[Фактические]])","v":{"v":0,"d":"0 ₽"}}]
[null,"Столбец1","Предполагаемые","Фактические"]
[null,"Музыканты для церемонии"]
[null,"Музыкальная группа или диджей для торжества"]
[null,"Другое — введите подробные сведения"]
[]
[null,"Фотографии","Предполагаемые","Фактические"]
[null,null,{"$f":"SUM(Таблица_Фотографии[[#All],[Предполагаемые]])","v":{"v":0,"d":"0 ₽"}},{"$f":"SUM(Таблица_Фотографии[[#All],[Фактические]])","v":{"v":0,"d":"0 ₽"}}]
[null,"Столбец1","Предполагаемые","Фактические"]
[null,"Формальные"]
[null,"В естественной обстановке"]
[null,"Дополнительные экземпляры"]
[null,"Фотоальбомы"]
[null,"Видео"]
[null,"Другое — введите подробные сведения"]
[]
[null,"Торжество (кроме музыки и оформления)","Предполагаемые","Фактические"]
[null,null,{"$f":"SUM(Таблица_Прием[[#All],[Предполагаемые]])","v":{"v":0,"d":"0 ₽"}},{"$f":"SUM(Таблица_Прием[[#All],[Фактические]])","v":{"v":0,"d":"0 ₽"}}]
[null,"Столбец1","Предполагаемые","Фактические"]
[null,"Плата за помещение или зал"]
[null,"Столы и стулья"]
[null,"Еда"]
[null,"Напитки"]
[null,"Скатерти"]
[null,"Торт"]
[null,"Сувениры"]
[null,"Обслуживающий персонал и чаевые"]
[null,"Другое — введите подробные сведения"]
[]
[null,"Канцтовары и печатные материалы","Предполагаемые","Фактические"]
[null,null,{"$f":"SUM(Таблица_ПечатныеМатериалыБланки[[#All],[Предполагаемые]])","v":{"v":0,"d":"0 ₽"}},{"$f":"SUM(Таблица_ПечатныеМатериалыБланки[[#All],[Фактические]])","v":{"v":0,"d":"0 ₽"}}]
[null,"Столбец1","Предполагаемые","Фактические"]
[null,"Приглашения"]
[null,"Объявления"]
[null,"Благодарственные открытки"]
[null,"Индивидуальные канцтовары"]
[null,"Книга для записей"]
[null,"Программы"]
[null,"Салфетки для торжества"]
[null,"Спичечные коробки"]
[null,"Каллиграфия"]
[null,"Другое — введите подробные сведения"]
[]
[null,"Транспорт","Предполагаемые","Фактические"]
[null,null,{"$f":"SUM(Таблица_Транспорт[[#All],[Предполагаемые]])","v":{"v":0,"d":"0 ₽"}},{"$f":"SUM(Таблица_Транспорт[[#All],[Фактические]])","v":{"v":0,"d":"0 ₽"}}]
[null,"Столбец1","Предполагаемые","Фактические"]
[null,"Автомобили или автобусы"]
[null,"Парковка"]
[null,"Такси"]
[null,"Другое — введите подробные сведения"]
[]
[null,"Прочие расходы","Предполагаемые","Фактические"]
[null,null,{"$f":"SUM(Таблица_ПрочиеРасходы[[#All],[Предполагаемые]])","v":{"v":0,"d":"0 ₽"}},{"$f":"SUM(Таблица_ПрочиеРасходы[[#All],[Фактические]])","v":{"v":0,"d":"0 ₽"}}]
[null,"Столбец1","Предполагаемые","Фактические"]
[null,"Свадебный регистратор"]
[null,"Аренда зала или места проведения церемонии"]
[null,"Координатор свадьбы"]
[null,"Ужин накануне свадьбы"]
[null,"Вечеринка по случаю помолвки"]
[null,"Прием гостей в доме невесты"]
[null,"Посещение салона красоты"]
[null,"Мальчишник и девичник"]
[null,"Поздний завтрак"]
[null,"Номера в гостинице"]
[null,"Другое — введите подробные сведения"]